fUSD/lending_fUSD_20250304
["ID","MTS","AMOUNT","RATE_DAILY","PERIOD"]
[355334828,1741067448099,-514.75376771,0.00012691,2]
[355334830,1741067448108,-517.58510665,0.00012691,2]
[355334832,1741067448120,-552.50858082,0.00012691,2]
[355334834,1741067448130,-518.32510852,0.00012691,2]
[355334836,1741067448140,-556.71439601,0.00012691,2]
[355334838,1741067448150,-500.0,0.00012691,2]
[355334840,1741067448160,-500.0,0.00012691,2]
[355334842,1741067448170,-720.09,0.00012691,2]
[355334844,1741067448179,-500.0,0.00012691,2]
[355334847,1741067448196,-513.22896659,0.00012691,2]
[355334850,1741067448217,-1275.72,0.00012691,2]
[355334853,1741067448238,-517.44125246,0.00012691,2]
[355334856,1741067448259,-501.62735429,0.00012691,2]
[355334859,1741067448275,-344.31343664,0.00012691,2]
[355334862,1741067448295,-500.0,0.00012691,2]
[355334865,1741067448318,-500.0,0.00012691,2]
[355334868,1741067448339,-500.0,0.00012691,2]
[355334871,1741067448359,-500.0,0.00012691,2]
[355334874,1741067448377,-580.76,0.00012691,2]
[355334876,1741067448398,-778.05,0.00012691,2]
[355334879,1741067448413,-150.99,0.00012691,2]
[355334882,1741067448434,-9999.99,0.00012691,2]
[355334884,1741067448449,-150.99,0.00012691,2]
[355334887,1741067448469,-1076.49,0.00012691,2]
[355334890,1741067448486,-5212.76692557,0.00012691,2]
[355334893,1741067448503,-4527.89076257,0.00012691,2]
[355334895,1741067448520,-500.0,0.00012699,2]
[355334898,1741067448539,-500.0,0.00012699,2]
[355334900,1741067448556,-500.0,0.00012699,2]
[355334903,1741067448573,-517.07,0.00012699,2]
[355334906,1741067448593,-502.14,0.00012699,2]
[355334909,1741067448610,-157.03,0.00012703,2]
[355334911,1741067448631,-5212.76692557,0.00012726,2]
[355334915,1741067448655,-4527.89076257,0.00012726,2]
[355334917,1741067448673,-2058.9660494,0.00012739,2]
[355334920,1741067448691,-3098.36896906,0.00012761,2]
[355335040,1741067449916,-1688.12,0.00012761,2]
[355335043,1741067449938,-2029.5,0.00012687,2]
[355335045,1741067449947,-426.27795651,0.00012761,2]
[355335047,1741067449957,-1142.91777977,0.00012761,2]
[355335106,1741067450525,-1378.52,0.00012599,2]
[355335108,1741067450534,-500.0,0.00012687,2]
[355335110,1741067450543,-533.04087753,0.00012688,2]
[355335112,1741067450553,-3384.9729828,0.00012761,2]
[355335114,1741067450563,-150.0,0.00012771,2]
[355335116,1741067450572,-5212.76692557,0.00012796,2]
[355335118,1741067450581,-4527.89076257,0.00012796,2]
[355335119,1741067450590,-348.98,0.000128,2]
[355335120,1741067450600,-295.3606686,0.000128,2]
[355335121,1741067450610,-1000.0,0.000128,2]
[355335122,1741067450621,-5212.76692557,0.0001283,2]
[355335123,1741067450630,-150.0,0.00012834,2]
[355335124,1741067450639,-150.0,0.00012839,2]
[355335125,1741067450648,-157.03,0.00012851,2]
[355335126,1741067450658,-426.51976331,0.00012862,2]
[355335127,1741067450667,-5212.76692557,0.00012865,2]
[355335128,1741067450676,-150.0,0.00012866,2]
[355335129,1741067450685,-792.17188,0.0001287,2]
[355335130,1741067450694,-1946.46,0.00012873,2]
[355335131,1741067450703,-1796.92,0.00012873,2]
[355335132,1741067450712,-3782.86,0.00012873,2]
[355335133,1741067450722,-1756.14,0.00012873,2]
[355335134,1741067450731,-1430.76,0.00012873,2]
[355335135,1741067450740,-2906.63,0.00012873,2]
[355335136,1741067450749,-500.0,0.00012873,2]
[355335137,1741067450758,-500.0,0.00012873,2]
[355335138,1741067450767,-2571.15,0.00012873,2]
[355335139,1741067450776,-2078.09,0.00012873,2]
[355335140,1741067450785,-840.07,0.00012873,2]
[355335142,1741067450794,-968.68,0.00012873,2]
[355335144,1741067450804,-1766.29,0.00012873,2]
[355335146,1741067450814,-3358.45,0.00012873,2]
[355335148,1741067450823,-2667.12,0.00012873,2]
[355335150,1741067450832,-3232.24,0.00012873,2]
[355335151,1741067450842,-1975.96,0.00012873,2]
[355335153,1741067450851,-500.0,0.00012873,2]
[355335155,1741067450861,-3565.3,0.00012873,2]
[355335157,1741067450870,-647.23,0.00012873,2]
[355335159,1741067450880,-2673.03,0.00012873,2]
[355335161,1741067450889,-1690.21,0.00012873,2]
[355335163,1741067450899,-1085.99,0.00012873,2]
[355335165,1741067450908,-1489.85,0.00012873,2]
[355335167,1741067450918,-565.48,0.00012873,2]
[355335169,1741067450927,-2925.92,0.00012873,2]
[355335171,1741067450936,-906.43,0.00012873,2]
[355335173,1741067450946,-685.19,0.00012873,2]
[355335175,1741067450955,-500.0,0.00012873,2]
[355335177,1741067450965,-713.8,0.00012873,2]
[355335179,1741067450974,-2000.82,0.00012873,2]
[355335181,1741067450983,-500.0,0.00012873,2]
[355335183,1741067450993,-1378.52,0.00012873,2]
[355335185,1741067451003,-237.3437329,0.00012894,2]
[355335187,1741067451013,-3646.088,0.00012896,2]
[355335189,1741067451022,-185.627,0.00012896,2]
[355335191,1741067451032,-340.08560482,0.000129,2]
[355335193,1741067451043,-47905.0,0.000129,2]
[355335195,1741067451053,-2290.4334439,0.000129,2]
[355335197,1741067451062,-5212.76692557,0.000129,2]
[355335199,1741067451071,-166.91727646,0.000129,2]
[355335201,1741067451081,-4773.86359614,0.000129,2]
[355335203,1741067451090,-242.33273081,0.00012903,2]
[355335205,1741067451099,-500.0,0.0001292,2]
[355335207,1741067451109,-426.5197633,0.00012951,2]
[355335209,1741067451118,-500.0,0.00012956,2]
[355335211,1741067451128,-191709.61257672,0.00012956,2]
[355335213,1741067451137,-1147.5,0.00012961,2]
[355335215,1741067451146,-1957.65,0.00012961,2]
[355335217,1741067451156,-924.54,0.00012961,2]
[355335219,1741067451165,-997.64,0.00012961,2]
[355335221,1741067451174,-1212.54,0.00012961,2]
[355335223,1741067451184,-500.0,0.00012961,2]
[355335225,1741067451193,-500.0,0.00012961,2]
[355335227,1741067451203,-1424.73,0.00012961,2]
[355335229,1741067451212,-1064.83,0.00012961,2]
[355335231,1741067451221,-500.0,0.00012961,2]
[355335233,1741067451230,-1506.27,0.00012961,2]
[355335235,1741067451239,-883.32,0.00012961,2]
[355335237,1741067451249,-500.0,0.00012961,2]
[355335239,1741067451258,-998.81,0.00012961,2]
[355335241,1741067451267,-864.94,0.00012961,2]
[355335243,1741067451276,-890.71,0.00012961,2]
[355335244,1741067451285,-1076.86,0.00012961,2]
[355335246,1741067451295,-1336.75,0.00012961,2]
[355335248,1741067451310,-500.0,0.00012961,2]
[355335250,1741067451319,-822.06,0.00012961,2]
[355335252,1741067451328,-500.0,0.00012961,2]
[355335254,1741067451339,-1287.46,0.00012961,2]
[355335256,1741067451348,-892.07,0.00012961,2]
[355335258,1741067451358,-516.83290919,0.00012961,2]
[355335260,1741067451371,-500.0,0.00012961,2]
[355335262,1741067451380,-1864.853619,0.00012961,2]
[355335264,1741067451390,-1055.4,0.00012961,2]
[355335266,1741067451400,-950.07,0.00012961,2]
[355335269,1741067451410,-1364.15,0.00012961,2]
[355335271,1741067451420,-891.61,0.00012961,2]
[355335273,1741067451429,-500.0,0.00012961,2]
[355335275,1741067451439,-1458.82,0.00012961,2]
[355335277,1741067451457,-500.0,0.00012961,2]
[355335280,1741067451470,-1204.043329,0.00012961,2]
[355335282,1741067451482,-757.16,0.00012961,2]
[355335284,1741067451492,-500.0,0.00012961,2]
[355335286,1741067451502,-500.0,0.00012961,2]
[355335288,1741067451511,-500.0,0.00012961,2]
[355335290,1741067451521,-500.0,0.00012961,2]
[355335292,1741067451531,-500.0,0.00012961,2]
[355335294,1741067451541,-1032.74,0.00012961,2]
[355335296,1741067451551,-502.89,0.00012961,2]
[355335298,1741067451561,-1499.01,0.00012961,2]
[355335300,1741067451570,-303.2,0.00012961,2]
[355335302,1741067451580,-894.28,0.00012961,2]
[355335304,1741067451590,-500.0,0.00012961,2]
[355335306,1741067451600,-925.82,0.00012961,2]
[355335308,1741067451611,-500.0,0.00012961,2]
[355335310,1741067451620,-1938.15,0.00012961,2]
[355335312,1741067451630,-791.59,0.00012961,2]
[355335315,1741067451640,-861.12,0.00012961,2]
[355335317,1741067451650,-500.0,0.00012961,2]
[355335319,1741067451660,-839.7,0.00012961,2]
[355335321,1741067451670,-2160.05,0.00012961,2]
[355335322,1741067451679,-884.4,0.00012961,2]
[355335325,1741067451689,-500.0,0.00012961,2]
[355335327,1741067451699,-510.12209173,0.00012961,2]
[355335329,1741067451708,-1746.8,0.00012961,2]
[355335331,1741067451718,-500.0,0.00012961,2]
[355335333,1741067451727,-500.0,0.00012961,2]
[355335335,1741067451737,-613.58,0.00012961,2]
[355335337,1741067451747,-500.0,0.00012961,2]
[355335339,1741067451756,-832.43,0.00012961,2]
[355335341,1741067451766,-1485.33,0.00012961,2]
[355335343,1741067451776,-500.0,0.00012961,2]
[355335345,1741067451786,-500.0,0.00012961,2]
[355335347,1741067451796,-608.41,0.00012961,2]
[355335349,1741067451805,-500.0,0.00012961,2]
[355335351,1741067451816,-1163.17,0.00012961,2]
[355335353,1741067451826,-500.0,0.00012961,2]
[355335355,1741067451836,-680.47,0.00012961,2]
[355335357,1741067451846,-500.0,0.00012961,2]
[355335359,1741067451856,-745.48,0.00012961,2]
[355335361,1741067451867,-604.19,0.00012961,2]
[355335391,1741067452139,-500.0,0.00012961,2]
[355335395,1741067452168,-1940.9,0.00012961,2]
[355335397,1741067452178,-508.67076457,0.00012961,2]
[355335399,1741067452187,-500.0,0.00012961,2]
[355335401,1741067452196,-513.71113514,0.00012961,2]
[355335403,1741067452206,-500.0,0.00012961,2]
[355335405,1741067452215,-2264.17,0.00012961,2]
[355335407,1741067452223,-500.0,0.00012961,2]
[355335409,1741067452240,-510.23307774,0.00012961,2]
[355335411,1741067452250,-500.0,0.00012961,2]
[355335413,1741067452259,-513.17588752,0.00012961,2]
[355335415,1741067452268,-824.72,0.00012961,2]
[355335417,1741067452277,-500.0,0.00012961,2]
[355335419,1741067452286,-726.42,0.00012961,2]
[355335421,1741067452300,-1626.79,0.00012961,2]
[355335423,1741067452309,-500.0,0.00012961,2]
[355335425,1741067452319,-2265.04,0.00012961,2]
[355335426,1741067452328,-959.37,0.00012961,2]
[355335428,1741067452339,-1361.19,0.00012961,2]
[355335431,1741067452349,-756.65,0.00012961,2]
[355335432,1741067452358,-1829.44,0.00012961,2]
[355335434,1741067452368,-735.19,0.00012961,2]
[355335436,1741067452379,-2741.42,0.00012961,2]
[355335438,1741067452389,-2938.35,0.00012961,2]
[355335441,1741067452403,-1120.26,0.00012961,2]
[355335443,1741067452412,-2708.06,0.00012961,2]
[355335445,1741067452422,-964.45,0.00012961,2]
[355335447,1741067452431,-500.0,0.00012961,2]
[355335449,1741067452440,-4091.54,0.00012961,2]
[355335451,1741067452449,-2641.87,0.00012961,2]
[355335453,1741067452458,-1958.54,0.00012961,2]
[355335455,1741067452468,-580.22,0.00012961,2]
[355335457,1741067452477,-601.31,0.00012961,2]
[355335459,1741067452486,-3735.11,0.00012961,2]
[355335461,1741067452496,-2606.92,0.00012961,2]
[355335463,1741067452505,-500.0,0.00012961,2]
[355335465,1741067452514,-5428.41,0.00012961,2]
[355335467,1741067452525,-2640.07,0.00012961,2]
[355335469,1741067452534,-1241.46,0.00012961,2]
[355335471,1741067452544,-3109.76,0.00012961,2]
[355335473,1741067452553,-500.0,0.00012961,2]
[355335475,1741067452562,-712.75,0.00012961,2]
[355335477,1741067452571,-5799.33,0.00012961,2]
[355335479,1741067452581,-1711.22,0.00012961,2]
[355335481,1741067452590,-675.75,0.00012961,2]
[355335483,1741067452600,-811.63,0.00012961,2]
[355335485,1741067452609,-580.49683379,0.00012961,2]
[355335487,1741067452619,-1745.88,0.00012961,2]
[355335489,1741067452629,-792.44,0.00012961,2]
[355335491,1741067452638,-7195.23,0.00012961,2]
[355335493,1741067452647,-6650.24,0.00012961,2]
[355335495,1741067452658,-1615.75,0.00012961,2]
[355335497,1741067452667,-2424.0,0.00012961,2]
[355335499,1741067452676,-500.0,0.00012961,2]
[355335501,1741067452686,-668.83,0.00012961,2]
[355335503,1741067452695,-2751.56,0.00012961,2]
[355335505,1741067452705,-500.0,0.00012961,2]
[355335507,1741067452715,-3343.75,0.00012961,2]
[355335509,1741067452725,-500.0,0.00012961,2]
[355335511,1741067452734,-3116.67,0.00012961,2]
[355335513,1741067452744,-500.0,0.00012961,2]
[355335515,1741067452753,-500.0,0.00012961,2]
[355335517,1741067452762,-1391.94,0.00012961,2]
[355335519,1741067452771,-4715.53,0.00012961,2]
[355335521,1741067452781,-2053.38,0.00012961,2]
[355335523,1741067452790,-2033.57,0.00012961,2]
[355335525,1741067452799,-500.0,0.00012961,2]
[355335527,1741067452810,-4445.23,0.00012961,2]
[355335529,1741067452819,-2585.55,0.00012961,2]
[355335531,1741067452829,-3554.32,0.00012961,2]
[355335533,1741067452838,-542.64,0.00012961,2]
[355335535,1741067452848,-3346.29,0.00012961,2]
[355335537,1741067452857,-886.98,0.00012961,2]
[355335539,1741067452868,-150.70115948,0.00012961,2]
[355335541,1741067452877,-500.0,0.00012961,2]
[355335543,1741067452887,-1426.71,0.00012961,2]
[355335545,1741067452896,-4334.7,0.00012961,2]
[355335548,1741067452909,-3439.72,0.00012961,2]
[355335550,1741067452919,-500.0,0.00012961,2]
[355335552,1741067452928,-1421.78,0.00012961,2]
[355335554,1741067452938,-791.44,0.00012961,2]
[355335556,1741067452947,-4646.39,0.00012961,2]
[355335558,1741067452956,-518.15278823,0.00012961,2]
[355335560,1741067452966,-909.33,0.00012961,2]
[355335562,1741067452975,-6200.1,0.00012961,2]
[355335564,1741067452984,-500.0,0.00012961,2]
[355335566,1741067452993,-664.93,0.00012961,2]
[355335568,1741067453003,-940.07,0.00012961,2]
[355335570,1741067453012,-3458.47,0.00012961,2]
[355335572,1741067453021,-500.0,0.00012961,2]
[355335574,1741067453030,-1521.61,0.00012961,2]
[355335575,1741067453039,-4233.11,0.00012961,2]
[355335578,1741067453049,-348.66843313,0.00012961,2]
[355335580,1741067453059,-3429.86,0.00012961,2]
[355335581,1741067453068,-500.0,0.00012961,2]
[355335583,1741067453078,-3602.82,0.00012961,2]
[355335585,1741067453088,-854.36,0.00012961,2]
[355335588,1741067453097,-587.89,0.00012961,2]
[355335589,1741067453107,-500.0,0.00012961,2]
[355335591,1741067453118,-762.35,0.00012961,2]
[355335593,1741067453127,-14807.88,0.00012961,2]
[355335595,1741067453136,-592.49,0.00012961,2]
[355335597,1741067453146,-1178.77,0.00012961,2]
[355335599,1741067453156,-3132.8,0.00012961,2]
[355335601,1741067453165,-500.0,0.00012961,2]
[355335603,1741067453175,-702.43,0.00012961,2]
[355335605,1741067453184,-2198.4,0.00012961,2]
[355335607,1741067453194,-500.0,0.00012961,2]
[355335609,1741067453203,-815.218788,0.00012961,2]
[355335611,1741067453212,-1944.25,0.00012961,2]
[355335613,1741067453222,-841.6,0.00012961,2]
[355335615,1741067453231,-815.218788,0.00012961,2]
[355335617,1741067453241,-431.13716083,0.00012961,2]
[355335619,1741067453251,-586.51,0.00012961,2]
[355335621,1741067453260,-3704.09,0.00012961,2]
[355335623,1741067453270,-2459.59,0.00012961,2]
[355335625,1741067453279,-151.0,0.00012961,2]
[355335627,1741067453289,-2434.44,0.00012961,2]
[355335629,1741067453300,-500.0,0.00012961,2]
[355335631,1741067453311,-500.0,0.00012961,2]
[355335633,1741067453323,-500.0,0.00012961,2]
[355335635,1741067453333,-2029.5,0.00012961,2]
[355335637,1741067453343,-1043.8,0.00012961,2]
[355335639,1741067453352,-3299.0,0.00012962,2]
[355335641,1741067453362,-413.90590676,0.00012962,2]
[355335643,1741067453372,-500.0,0.00012962,2]
[355335645,1741067453383,-599.01,0.00012962,2]
[355335647,1741067453394,-735.3,0.00012962,2]
[355335649,1741067453404,-735.72,0.00012962,2]
[355335651,1741067453414,-671.76,0.00012962,2]
[355335653,1741067453424,-877.51,0.00012962,2]
[355335655,1741067453433,-500.0,0.00012962,2]
[355335657,1741067453443,-721.59,0.00012962,2]
[355335660,1741067453452,-1008.77,0.00012962,2]
[355335662,1741067453462,-500.0,0.00012962,2]
[355335663,1741067453471,-680.43,0.00012962,2]
[355335665,1741067453481,-780.75,0.00012962,2]
[355335668,1741067453492,-500.0,0.00012962,2]
[355335669,1741067453502,-500.0,0.00012962,2]
[355335672,1741067453512,-733.68,0.00012962,2]
[355335674,1741067453522,-500.0,0.00012962,2]
[355335675,1741067453532,-545.49,0.00012962,2]
[355335678,1741067453543,-602.38,0.00012962,2]
[355335680,1741067453552,-533.35,0.00012962,2]
[355335682,1741067453562,-500.0,0.00012962,2]
[355335684,1741067453572,-931.08,0.00012962,2]
[355335686,1741067453581,-824.6,0.00012962,2]
[355335688,1741067453591,-1200.74,0.00012962,2]
[355335691,1741067453612,-500.0,0.00012962,2]
[355335693,1741067453624,-1110.2,0.00012962,2]
[355335695,1741067453634,-500.0,0.00012962,2]
[355335697,1741067453645,-2255.03,0.00012962,2]
[355335699,1741067453655,-175.35,0.00012962,2]
[355335701,1741067453665,-735.22,0.00012962,2]
[355335703,1741067453675,-500.0,0.00012962,2]
[355335705,1741067453685,-1373.18,0.00012962,2]
[355335707,1741067453695,-745.14,0.00012962,2]
[355335708,1741067453706,-500.0,0.00012962,2]
[355335709,1741067453716,-639.45,0.00012962,2]
[355335710,1741067453726,-523.73876791,0.00012962,2]
[355335711,1741067453736,-500.0,0.00012962,2]
[355335712,1741067453746,-1433.87,0.00012962,2]
[355335713,1741067453756,-500.0,0.00012962,2]
[355335714,1741067453766,-971.78,0.00012962,2]
[355335715,1741067453776,-1225.33,0.00012962,2]
[355335716,1741067453786,-527.86,0.00012962,2]
[355335717,1741067453797,-500.0,0.00012962,2]
[355335718,1741067453807,-1344.56,0.00012962,2]
[355335719,1741067453817,-938.55,0.00012962,2]
[355335720,1741067453827,-500.0,0.00012962,2]
[355335721,1741067453837,-500.0,0.00012962,2]
[355335722,1741067453848,-533.57,0.00012962,2]
[355335723,1741067453857,-1187.08,0.00012962,2]
[355335724,1741067453868,-1259.01,0.00012962,2]
[355335725,1741067453877,-1523.77,0.00012962,2]
[355335727,1741067453887,-316.32010089,0.00012962,2]
[355335729,1741067453897,-915.86,0.00012962,2]
[355335731,1741067453906,-859.51,0.00012962,2]
[355335733,1741067453916,-1256.97,0.00012962,2]
[355335735,1741067453926,-500.0,0.00012962,2]
[355335736,1741067453936,-500.0,0.00012962,2]
[355335738,1741067453946,-500.0,0.00012962,2]
[355335740,1741067453956,-1796.18,0.00012962,2]
[355335743,1741067453966,-593.21,0.00012962,2]
[355335745,1741067453976,-600.55,0.00012962,2]
[355335747,1741067453987,-608.72,0.00012962,2]
[355335749,1741067453996,-641.25,0.00012962,2]
[355335751,1741067454007,-875.16,0.00012962,2]
[355335752,1741067454016,-500.0,0.00012962,2]
[355335755,1741067454027,-1069.73,0.00012962,2]
[355335757,1741067454036,-500.0,0.00012962,2]
[355335759,1741067454046,-500.0,0.00012962,2]
[355335761,1741067454056,-1157.69,0.00012962,2]
[355335763,1741067454066,-500.0,0.00012962,2]
[355335765,1741067454076,-500.0,0.00012962,2]
[355335767,1741067454085,-619.87,0.00012962,2]
[355335769,1741067454096,-556.45,0.00012962,2]
[355335771,1741067454105,-335.57393588,0.00012962,2]
[355335772,1741067454116,-624.7,0.00012962,2]
[355335774,1741067454126,-912.51,0.00012962,2]
[355335776,1741067454136,-432.62,0.00012962,2]
[355335779,1741067454146,-1055.42,0.00012962,2]
[355335781,1741067454156,-799.88,0.00012962,2]
[355335783,1741067454167,-680.27,0.00012962,2]
[355335785,1741067454176,-500.0,0.00012962,2]
[355335787,1741067454186,-500.0,0.00012962,2]
[355335789,1741067454196,-500.0,0.00012962,2]
[355335791,1741067454206,-921.1,0.00012962,2]
[355335793,1741067454216,-698.98,0.00012962,2]
[355335795,1741067454227,-597.23,0.00012962,2]
[355335797,1741067454237,-1010.05,0.00012962,2]
[355335799,1741067454247,-509.7466999,0.00012962,2]
[355335801,1741067454256,-708.9,0.00012962,2]
[355335803,1741067454266,-1152.09,0.00012962,2]
[355335805,1741067454276,-884.31,0.00012962,2]
[355335807,1741067454286,-500.0,0.00012962,2]
[355335809,1741067454296,-500.0,0.00012962,2]
[355335811,1741067454310,-673.03,0.00012962,2]
[355335813,1741067454320,-1606.71,0.00012962,2]
[355335815,1741067454330,-956.83,0.00012962,2]
[355335817,1741067454340,-892.27,0.00012962,2]
[355335819,1741067454351,-985.97,0.00012962,2]
[355335821,1741067454361,-537.10247407,0.00012962,2]
[355335823,1741067454372,-1279.61,0.00012962,2]
[355335825,1741067454384,-735.77,0.00012962,2]
[355335827,1741067454394,-1042.19,0.00012962,2]
[355335829,1741067454405,-500.0,0.00012962,2]
[355335831,1741067454416,-1240.36,0.00012962,2]
[355335833,1741067454425,-500.0,0.00012962,2]
[355335836,1741067454437,-1333.93,0.00012962,2]
[355335838,1741067454454,-749.39,0.00012962,2]
[355335840,1741067454464,-500.0,0.00012962,2]
[355335842,1741067454475,-735.13,0.00012962,2]
[355335844,1741067454486,-1143.69,0.00012962,2]
[355335846,1741067454496,-1317.2,0.00012962,2]
[355335848,1741067454507,-665.37,0.00012962,2]
[355335850,1741067454517,-681.48,0.00012962,2]
[355335852,1741067454528,-717.16,0.00012962,2]
[355335854,1741067454538,-2588.77,0.00012962,2]
[355335856,1741067454548,-510.87075773,0.00012962,2]
[355335858,1741067454559,-704.23,0.00012962,2]
[355335860,1741067454569,-950.64,0.00012962,2]
[355335863,1741067454579,-948.84,0.00012962,2]
[355335865,1741067454589,-500.0,0.00012962,2]
[355335867,1741067454600,-637.0,0.00012962,2]
[355335869,1741067454611,-2453.81,0.00012962,2]
[355335871,1741067454623,-967.18,0.00012962,2]
[355335873,1741067454634,-1306.77,0.00012962,2]
[355335875,1741067454645,-971.59,0.00012962,2]
[355335877,1741067454655,-3159.27,0.00012962,2]
[355335879,1741067454666,-718.48,0.00012962,2]
[355335881,1741067454676,-2292.39,0.00012962,2]
[355335883,1741067454686,-500.0,0.00012962,2]
[355335885,1741067454696,-500.0,0.00012962,2]
[355335887,1741067454706,-3916.92,0.00012962,2]
[355335889,1741067454716,-905.65,0.00012962,2]
[355335891,1741067454726,-938.49,0.00012962,2]
[355335893,1741067454736,-1068.76,0.00012962,2]
[355335895,1741067454746,-1481.08,0.00012962,2]
[355335897,1741067454756,-500.0,0.00012962,2]
[355335899,1741067454766,-500.0,0.00012962,2]
[355335901,1741067454777,-3758.59,0.00012962,2]
[355335903,1741067454787,-1232.06,0.00012962,2]
[355335906,1741067454798,-542.72292765,0.00012962,2]
[355335908,1741067454809,-707.2,0.00012962,2]
[355335910,1741067454819,-24803.65,0.00012962,2]
[355335912,1741067454829,-669.06,0.00012962,2]
[355335914,1741067454839,-500.0,0.00012962,2]
[355335916,1741067454849,-1605.4,0.00012962,2]
[355335918,1741067454859,-681.56,0.00012962,2]
[355335920,1741067454869,-500.0,0.00012962,2]
[355335922,1741067454879,-151.0,0.00012962,2]
[355335924,1741067454890,-1142.28,0.00012962,2]
[355335926,1741067454900,-721.59,0.00012962,2]
[355335928,1741067454910,-2529.12,0.00012962,2]
[355335930,1741067454920,-762.81,0.00012962,2]
[355335932,1741067454930,-882.94,0.00012962,2]
[355335934,1741067454940,-508.83895443,0.00012962,2]
[355335936,1741067454951,-972.74,0.00012962,2]
[355335938,1741067454961,-2820.11,0.00012962,2]
[355335940,1741067454971,-500.0,0.00012962,2]
[355335942,1741067454980,-500.0,0.00012962,2]
[355335944,1741067454991,-7167.835113,0.00012962,2]
[355335946,1741067455001,-500.0,0.00012962,2]
[355335948,1741067455011,-151.0,0.00012962,2]
[355335950,1741067455021,-1952.91,0.00012962,2]
[355335952,1741067455032,-7167.835113,0.00012962,2]
[355335954,1741067455042,-500.0,0.00012962,2]
[355335956,1741067455052,-1454.42,0.00012962,2]
[355335958,1741067455062,-2450.49,0.00012962,2]
[355335960,1741067455072,-151.0,0.00012962,2]
[355335962,1741067455082,-500.0,0.00012962,2]
[355335964,1741067455093,-500.0,0.00012962,2]
[355335966,1741067455103,-2270.91,0.00012962,2]
[355335968,1741067455113,-753.93,0.00012962,2]
[355335970,1741067455124,-3033.92,0.00012962,2]
[355335973,1741067455135,-4116.41,0.00012962,2]
[355335975,1741067455147,-500.0,0.00012962,2]
[355335976,1741067455157,-1266.85,0.00012962,2]
[355335979,1741067455167,-740.93,0.00012962,2]
[355335981,1741067455177,-599.11,0.00012962,2]
[355335983,1741067455187,-151.0,0.00012962,2]
[355335985,1741067455197,-500.0,0.00012962,2]
[355335987,1741067455208,-500.0,0.00012962,2]
[355335989,1741067455218,-4487.76,0.00012962,2]
[355335991,1741067455227,-500.0,0.00012962,2]
[355335993,1741067455237,-500.0,0.00012962,2]
[355335995,1741067455247,-671.94,0.00012962,2]
[355335997,1741067455257,-151.0,0.00012962,2]
[355335999,1741067455267,-151.0,0.00012962,2]
[355336001,1741067455277,-151.0,0.00012962,2]
[355336003,1741067455287,-151.0,0.00012962,2]
[355336005,1741067455304,-1449.51,0.00012962,2]
[355336007,1741067455315,-30202.45,0.00012962,2]
[355336009,1741067455326,-4725.55,0.00012962,2]
[355336011,1741067455336,-500.0,0.00012962,2]
[355336013,1741067455348,-500.0,0.00012962,2]
[355336040,1741067455601,-1435.05,0.00012962,2]
[355336042,1741067455613,-1042.03,0.00012962,2]
[355336044,1741067455623,-500.0,0.00012962,2]
[355336046,1741067455632,-230.95048,0.00012962,2]